Cogmind - Beta 13 X1 @@@ ROGUE MODE // 2023.07.17 @ 12:25:05 Player: Minty Result: Destroyed by Y-45 Defender with Beam Rifle Performance ------------- Evolutions (1) 500 Regions Visited (4) 800 Robots Destroyed (52) 260 Value Destroyed (1632) 1632 Prototype IDs (1) 20 Alien Tech Used (0) 0 Bonus (792) 792 TOTAL SCORE: 4004 Bonus ------- High Alert Combat Kills 92 Entered Garrisons 200 Used RIF Installer 500 Cogmind --------- Core Integrity 0/400 Matter 286/300 Energy 90/100 System Corruption 1% Temperature Cool (16) Movement Flying (120) Ox1 Location -9/Garrison Parts ------- > --- POWER (1) -------- (None) > --- PROPULSION (2) --- Flight Unit > --- UTILITY (4) ------ Small Storage Unit Improved Targeting Computer Improved Targeting Computer Relay Coupler [Sentry] (18) > --- WEAPON (2) ------- (None) > --- INVENTORY (8) ---- Ion Engine Relay Coupler [NC] (29) Relay Coupler [NC] (24) Relay Coupler [Grunt] (22) Relay Coupler [Duelist] (27) Relay Coupler [Specialist] (19) Relay Coupler [Specialist] (18) Peak State ------------ > --- POWER ------------ Improved Ion Engine > --- PROPULSION ------- Aluminum Leg Aluminum Leg > --- UTILITY ---------- Improved Heat Sink Small Storage Unit Hardened Medium Armor Plating Hardened Medium Armor Plating > --- WEAPON ----------- Advanced Beam Cannon Axe > --- INVENTORY -------- Improved Targeting Computer Improved Targeting Computer Hardened Light Armor Plating EM Pulse Gun EM Pulse Gun Beam Rifle Grenade Launcher Axe [Rating: 21] Favorites ----------- Power Improved Ion Engine Engine Improved Ion Engine Propulsion Aluminum Leg Leg Aluminum Leg Flight Unit Flight Unit Utility Hardened Medium Armor Plating Device Improved Heat Sink Storage Small Storage Unit Processor Improved Targeting Computer Hackware Relay Coupler [Sentry] Protection Hardened Medium Armor Plating Weapon EM Pulse Gun Energy Gun EM Pulse Gun Energy Cannon Advanced Beam Cannon Ballistic Gun Autogun Launcher Grenade Launcher Slashing Weapon Axe Build | -11 -10 -9 -9 -9 ------- Run | Jun Mat Mat Sto Gar Slots Evolved 2 | . . 2 . . Power . | . . . . . Propulsion . | . . . . . Utility 2 | . . 2 . . Weapon . | . . . . . Parts Attached 57 | . 16 5 10 26 Power 6 | . 1 . . 5 Engine 6 | . 1 . . 5 Core . | . . . . . Reactor . | . . . . . Propulsion 9 | . 2 . 3 4 Treads . | . . . . . Leg 6 | . 2 . 3 1 Wheel . | . . . . . Hover . | . . . . . Flight 3 | . . . . 3 Utility 11 | . 3 3 1 4 Device 3 | . 2 . 1 . Storage 1 | . . . . 1 Processor 2 | . . . . 2 Hackware 1 | . . . . 1 Protection 4 | . 1 3 . . Artifact . | . . . . . Weapon 31 | . 10 2 6 13 Energy Gun 20 | . 7 . 2 11 Energy Cannon 2 | . . . 2 . Ballistic Gun 3 | . 2 . 1 . Ballistic Cannon . | . . . . . Launcher 3 | . 1 . . 2 Special Weapon . | . . . . . Impact Weapon . | . . . . . Slashing Weapon 3 | . . 2 1 . Piercing Weapon . | . . . . . Special Melee Weapon . | . . . . . Unidentified Prototypes 1 | . . . 1 . Corrupted Parts 1 | . 1 . . . System Corruption 7 | . 7 . . . Parts Lost 13 | . . . . 13 Power 2 | . . . . 2 Propulsion 4 | . . . . 4 Utility 1 | . . . . 1 Weapon 6 | . . . . 6 Highest Loss Streak 6 | . . . . 6 To Critical Strikes . | . . . . . Average Slot Usage (%) 95 | . 97 99 100 90 Engine 11 | . 14 11 11 10 Leg 21 | . 28 22 22 16 Device 7 | . 3 11 11 8 Storage 11 | . 14 11 11 9 Processor 2 | . . . . 6 Protection 16 | . 10 21 22 15 Energy Gun 10 | . 20 2 2 10 Energy Cannon 4 | . . . 6 8 Ballistic Gun 2 | . 4 . 5 . Slashing Weapon 4 | . . 19 7 . Naked Turns . | . . . . . Heaviest Build 37 | 11 21 35 37 37 Greatest Support 20 | 20 20 20 20 20 Greatest Overweight (x) 4 | . 1 1 1 4 Average Overweight (x) . | . . 1 1 . Largest Inventory Capacity 8 | . 8 8 8 8 Average Capacity 7 | . 8 8 8 7 Most Carried 8 | . 8 8 8 8 Average Carried 7 | . 7 7 7 6 Final Capacity 8 | 8 8 8 8 8 Final Carried 8 | 6 8 8 8 7 Class Distribution -------------------- 100% | Mutant Dominant Class ---------------- Mutant | -10/Materials Mutant | -9/Materials Mutant | -9/Storage Mutant | -9/Garrison Resources | -11 -10 -9 -9 -9 ----------- Run | Jun Mat Mat Sto Gar Matter Collected 942 | 200 195 118 177 252 Remotely . | . . . . . Salvage Created 1446 | . 328 118 308 692 Parts 97 | . 28 12 19 38 Haulers Intercepted 2 | . 1 . 1 . Recyclers Shooed 1 | . . . 1 . Parts Field Recycled . | . . . . . Retrieved Matter . | . . . . . Parts Self-Destructed . | . . . . . Prevented . | . . . . . Kills | -11 -10 -9 -9 -9 ------- Run | Jun Mat Mat Sto Gar Combat Hostiles Destroyed 41 | . 8 4 7 22 Melee 4 | . . 4 . . Guns 16 | . 3 . 5 8 Cannons 7 | . . . 2 5 AOE 13 | . 5 . . 8 Classes Destroyed 9 | . 7 . 1 1 Worker 3 | . 2 . 1 . Builder 1 | . 1 . . . Tunneler 1 | . 1 . . . Hauler 2 | . 1 . 1 . Watcher 4 | . 3 1 . . Swarmer 17 | . 3 3 3 8 Grunt 15 | . 5 1 3 6 Sentry 8 | . . . 1 7 Programmer 1 | . . . . 1 Best Kill Streak 7 | . 5 3 3 7 Combat Bots Only 7 | . 5 3 3 7 Max Kills in Single Turn 4 | . 2 1 1 4 Gunslinging . | . . . . . Exploded 4 | . 2 . . 4 Melee 1 | . . 1 . . Uniques/NPCs Destroyed . | . . . . . Combat | -11 -10 -9 -9 -9 -------- Run | Jun Mat Mat Sto Gar Damage Taken 2139 | . 275 127 270 1467 Core 451 | . 43 . 22 386 Absorbed by Shields . | . . . . . Core Remaining (%) 91 | 100 82 . . . Volleys Fired 125 | . 38 . 30 57 Largest 2 | . 2 . 2 2 Hottest 136 | . 80 . 136 136 Shots Fired 206 | . 66 . 42 98 Gun 148 | . 58 . 28 62 Cannon 44 | . . . 14 30 Launcher 14 | . 8 . . 6 Special . | . . . . . Kinetic 29 | . 11 . 18 . Thermal 68 | . 11 . 14 43 Explosive 14 | . 8 . . 6 Electromagnetic 95 | . 36 . 10 49 Robot Hit Streak 17 | . 6 . 6 17 Robot Miss Streak 5 | . 4 . 5 2 Penetration Max . | . . . . . Secondary Targets 1 | . . . 1 . Max Gunslinging Chain 1 | . . . 1 . Shots Hit Robots 119 | . 34 9 23 53 Core Hits 79 | . 29 5 11 34 Critical Kills . | . . . . . Critical Parts Destroyed 1 | . . . 1 . Critical Strikes 2 | . . 1 1 . Destroy 1 | . . . 1 . Sever 1 | . . 1 . . Melee Attacks 15 | . . 11 4 . Impact . | . . . . . Slashing 15 | . . 11 4 . Piercing . | . . . . . Sneak Attacks 2 | . . . 2 . Combat Hostiles . | . . . . . Follow-up Attacks 1 | . . 1 . . Damage Inflicted 3248 | . 1054 310 477 1407 Guns 1005 | . 392 . 241 372 Cannons 474 | . . . 105 369 Explosions 1328 | . 662 . . 666 Melee 441 | . . 310 131 . Ramming . | . . . . . Kinetic 255 | . 66 . 189 . Thermal 853 | . 151 . 105 597 Explosive 1077 | . 586 . . 491 Electromagnetic 622 | . 251 . 52 319 Impact . | . . . . . Slashing 441 | . . 310 131 . Piercing . | . . . . . Highest Corruption 7 | . 7 . . 1 Average Corruption 1 | . 7 . . 1 Corruption Purged . | . . . . . Corruption Blocked . | . . . . . Effects 4 | . 2 . . 2 Message Errors 1 | . 1 . . . Matter Fused 1 | . 1 . . . Energy Discharges 1 | . . . . 1 Data Loss (minor) 1 | . . . . 1 Overload Shots . | . . . . . Overflow Damage 70 | . . 17 . 53 Projectiles . | . . . . . Explosions 53 | . . . . 53 Melee 17 | . . 17 . . Knockbacks . | . . . . . Impact . | . . . . . Kinetic . | . . . . . Secondary . | . . . . . Self-Inflicted Damage 62 | . . . . 62 Shots 3 | . . . . 3 Rammed . | . . . . . Targets Rammed . | . . . . . Kicked . | . . . . . Crushed . | . . . . . Highest Temperature 306 | . 306 . 171 246 Average Temperature 58 | . 63 . 54 53 Received Heat Transfer 597 | . 150 36 57 354 Siege Activations . | . . . . . Robots Corrupted 1 | . . . . 1 Combat Hostiles 1 | . . . . 1 Parts Fried 1 | . . . . 1 Impact Corruptions . | . . . . . Robots Melted . | . . . . . Combat Hostiles . | . . . . . Parts Melted 1 | . . . . 1 Heat Transferred 1453 | . 275 . 185 993 Parts Sabotaged . | . . . . . Parts Stolen . | . . . . . Parts Stripped . | . . . . . Power Chain Reactions 2 | . 1 . . 1 Missiles Intercepted . | . . . . . Alert | -11 -10 -9 -9 -9 ------- Run | Jun Mat Mat Sto Gar Peak Influence 767 | . 229 182 224 767 Initial 76 | . . 55 76 57 Average 216 | . 143 107 148 362 Maximum Alert Level 3 | . 1 . 1 3 Low Security (%) 55 | . 70 100 64 20 Level 1 30 | . 29 . 35 39 Level 2 12 | . . . . 34 Level 3 1 | . . . . 5 Level 4 . | . . . . . Level 5 . | . . . . . High Security . | . . . . . Max Security . | . . . . . Squads Dispatched 2 | . 1 1 . . Investigation . | . . . . . Extermination . | . . . . . Reinforcement 2 | . 1 1 . . Assault . | . . . . . Garrison . | . . . . . Intercept . | . . . . . Searches Triggered . | . . . . . Construction Impeded . | . . . . . Haulers Reinforced . | . . . . . Active Scanning Responses . | . . . . . Cargo Convoy Interrupts . | . . . . . Stealth | -11 -10 -9 -9 -9 --------- Run | Jun Mat Mat Sto Gar Distress Signals 3 | . 1 2 . . Communications Jammed . | . . . . . Distress Signals . | . . . . . Times Spotted 68 | . 15 9 9 35 Peak Tracking Total 9 | . 5 5 3 9 Tactical Retreats 5 | . 1 1 . 3 Traps | -11 -10 -9 -9 -9 ------- Run | Jun Mat Mat Sto Gar Traps Triggered 3 | . 1 . . 2 Indirectly . | . . . . . Trap Hack Attempts . | . . . . . Triggered . | . . . . . Disarmed . | . . . . . Reprogrammed . | . . . . . Reused . | . . . . . Traps Extracted . | . . . . . Installed . | . . . . . Triggered . | . . . . . Machines | -11 -10 -9 -9 -9 ---------- Run | Jun Mat Mat Sto Gar Machines Disabled 3 | . . . 1 2 Max in Single Turn 1 | . . . 1 1 Garrison Relay 2 | . . . . 2 Machines Repaired . | . . . . . Machines Sabotaged . | . . . . . Overloaded Fab Kills . | . . . . . Hacking | -11 -10 -9 -9 -9 --------- Run | Jun Mat Mat Sto Gar Machines Accessed 9 | . 4 . 3 2 Terminals 8 | . 4 . 2 2 Fabricators . | . . . . . Repair Stations . | . . . . . Recycling Units . | . . . . . Scanalyzers . | . . . . . Garrison Access 1 | . . . 1 . Total Hacks 23 | . 11 . 9 3 Successful 9 | . 5 . 3 1 Failed 14 | . 6 . 6 2 Catastrophic 2 | . 1 . . 1 Database Lockouts . | . . . . . Manual 11 | . 8 . 3 . Terminals 20 | . 11 . 6 3 Fabricators . | . . . . . Repair Stations . | . . . . . Recycling Units . | . . . . . Scanalyzers . | . . . . . Garrison Access 3 | . . . 3 . Terminal Hacks 4 | . 2 . 1 1 Open Door 1 | . . . 1 . Emergency Access Points 1 | . . . . 1 Scanalyzer Index 1 | . 1 . . . Locate Traps 1 | . 1 . . . Fabricator Hacks . | . . . . . Repair Station Hacks . | . . . . . Recycling Unit Hacks . | . . . . . Scanalyzer . | . . . . . Garrison Access Hacks 1 | . . . 1 . Unlock Access 1 | . . . 1 . Unauthorized Hacks 4 | . 3 . 1 . Terminals 4 | . 3 . 1 . Botnet 4 | . 3 . 1 . Fabricators . | . . . . . Repair Stations . | . . . . . Recycling Units . | . . . . . Scanalyzers . | . . . . . Garrison Access . | . . . . . Data Cores Recovered . | . . . . . Used . | . . . . . Hacking Detections 7 | . 3 . 2 2 Full Trace Events 2 | . 1 . . 1 Feedback Events 1 | . . . . 1 Corruption 1 | . . . . 1 Feedback Blocked . | . . . . . Robot Schematics Acquired . | . . . . . Robots Built . | . . . . . Authchips . | . . . . . Time . | . . . . . Total Robot Build Rating . | . . . . . Part Schematics Acquired . | . . . . . Parts Built . | . . . . . Authchips . | . . . . . Time . | . . . . . Total Part Build Rating . | . . . . . Parts Repaired . | . . . . . Time . | . . . . . Parts Recycled . | . . . . . Recycled Matter . | . . . . . Retrieved Matter . | . . . . . Retrieved Components . | . . . . . Parts Scanalyzed . | . . . . . Part Schematics Acquired . | . . . . . Parts Damaged . | . . . . . Bothacking | -11 -10 -9 -9 -9 ------------ Run | Jun Mat Mat Sto Gar Used RIF Installer 1 | . . . . 1 Robots Hacked . | . . . . . Non-combat . | . . . . . Combat . | . . . . . Robot Hacks Applied . | . . . . . Relay Couplers Released 13 | . . . . 13 Machine Destruction 9 | . . . . 9 Programmers 4 | . . . . 4 Attached 1 | . . . . 1 Fabnet Peak Effective % . | . . . . . Robots Rewired . | . . . . . Allies Hacked . | . . . . . Hacks Repelled . | . . . . . Allies | -11 -10 -9 -9 -9 -------- Run | Jun Mat Mat Sto Gar Total Allies . | . . . . . Largest Group . | . . . . . Highest-Rated Group . | . . . . . Highest-Rated Ally . | . . . . . Total Orders . | . . . . . Ally Attacks . | . . . . . Total Damage . | . . . . . Kills . | . . . . . Allies Corrupted . | . . . . . Allies Melted . | . . . . . Intel | -11 -10 -9 -9 -9 ------- Run | Jun Mat Mat Sto Gar Robot Analysis Total . | . . . . . Derelict Logs Recovered . | . . . . . Drone Launches . | . . . . . Drone Recoveries . | . . . . . Exploration | -11 -10 -9 -9 -9 ------------- Run | Jun Mat Mat Sto Gar Turns Passed 2087 | . 609 277 470 731 Spaces Moved 1004 | 1 324 126 193 360 Core 21 | . . . . 21 Treads . | . . . . . Legs 881 | 1 324 126 193 237 Wheels . | . . . . . Hover . | . . . . . Flight 102 | . . . . 102 Fastest Speed 37 | 120 120 190 190 37 Average Speed 159 | 120 145 190 190 146 Slowest Speed 290 | 120 190 190 190 290 Overloaded Moves . | . . . . . Propulsion Burnouts . | . . . . . Robots Hopped . | . . . . . Cave-ins Triggered . | . . . . . Exploration Rate (%) 33 | 2 69 17 36 43 Regions Visited 4 Branch Regions 1 Pre-discovered Areas . | . . . . . Known Exits Taken 1 | . . . 1 . Unknown Exits Taken 3 | 1 1 1 . . Scrap Searched . | . . . . . Spaces Dug . | . . . . . Terrain Destroyed 67 | . 40 . . 27 Melee . | . . . . . Projectile . | . . . . . AOE 67 | . 40 . . 27 Terrain Rammed . | . . . . . Walls Destroyed . | . . . . . Machines Disabled . | . . . . . Actions | -11 -10 -9 -9 -9 --------- Run | Jun Mat Mat Sto Gar Total 1264 | . 393 146 252 473 Wait 7 | . 4 2 . 1 Move 1001 | . 323 125 193 360 Hop . | . . . . . Pick Up 17 | . 3 . 4 10 Fast Attach 26 | . 9 3 4 10 Attach 10 | . . 1 . 9 Detach 7 | . . 2 . 5 Swap 21 | . 7 1 6 7 Drop 36 | . 9 2 11 14 Fire 125 | . 38 . 30 57 Melee 14 | . . 10 4 . Ram . | . . . . . Kick . | . . . . . Crush . | . . . . . Escape Stasis . | . . . . . Rewire . | . . . . . Trap . | . . . . . Miscellaneous . | . . . . . Route ------- -11/Junkyard -10/Materials (discovered 2 exits: [*Mat x2]) -9/Materials -9/Storage -9/Garrison History --------- Turn | Location | Event 1 | -11/Junkyard | Discovered new exit (range 0) 1 | -11/Junkyard | Entered Materials 283 | -10/Materials | Discovered new exit (range 16) 314 | -10/Materials | Build established: Mutant 590 | -10/Materials | Discovered new exit (range 15) 610 | -10/Materials | Entered another Materials area 610 | -9/Materials | Evolved 2 slots: Utility x2 852 | -9/Materials | Discovered new exit (range 5) 887 | -9/Materials | Entered Storage 1357 | -9/Storage | Identified exit to Garrison 1357 | -9/Storage | Entered Garrison 1371 | -9/Garrison | Installed Relay Interface Framework 1466 | -9/Garrison | Triggered checkpoint 1506 | -9/Garrison | Garrison Relay disabled 1870 | -9/Garrison | Triggered checkpoint 1924 | -9/Garrison | Destroyed 7 combat bots 1955 | -9/Garrison | Lost 6 parts (1p1n1u3w) 1974 | -9/Garrison | Triggered checkpoint 1992 | -9/Garrison | Triggered checkpoint 2012 | -9/Garrison | Triggered checkpoint 2039 | -9/Garrison | Garrison Relay disabled 2077 | -9/Garrison | Core integrity fell below 50% 2082 | -9/Garrison | Core integrity fell below 20% 2088 | -9/Garrison | Destroyed by Y-45 Defender with Beam Rifle Last Messages --------------- 02058_ Flight Unit destroyed. 02060_ S-10 Pest destroyed. 02066_ Sml. Laser destroyed. 02070_ Shock Rifle destroyed. 02070_ S-10 Pest destroyed. 02071_ Acquired Relay Coupler [Specialist]. 02073_ Acquired Sml. Storage Unit. 02073_ Critical hit (Burn: +37). 02073_ Lgt. Ion Engine destroyed. 02074_ Flight Unit destroyed. 02075_ Acquired Relay Coupler [Specialist]. 02077_ Acquired Relay Coupler [Duelist]. 02080_ Acquired 11 matter. 02082_ S-10 Pest destroyed. 02082_ Critical hit (Burn: +37). 02086_ Acquired Flight Unit. 02086_ C-30 ARC bursts open, deploying its payload. 02086_ L-31 Rogue unfolds itself. 02086_ G-34 Mercenary unfolds itself. 02088_ Acquired 10 matter. Map ----- +----------------------------------------------------+ | | | | | | | | | | | | | | | | | | | | | | | | | | | | | | | | | | | ?????????????????????????????????????????????????? | | ?????????????????????????????????????????????????? | | ?????????????????????????????????????????????????? | | ?????????????????????????????????????????????????? | | ?????????????????????????????????????????????????? | | ??????????????##############?????????????????????? | | ??????????????#" """##"""""#?????????????????????? | | ???????????#/###Y #### ###+#??????????????????? | | ???????????#*%==s @[ #??????????????????? | | ???????????# [=gg= Y #??????????????????? | | ???????????# %############## #??????????????????? | | ???????????# #????????????? #??????????????????? | | ???????????# #????????????# #??????????????????? | | ???????????# ###??????????# #??????????????????? | | ???????????# #??????????" #??????????????????? | | ???????????# =%#??????????" #??????????????????? | | ???????????# *+????????+?" #??????????????????? | | ???????????# =[%#??????????" #??????????????????? | | ???????????# ###??????????# #??????????????????? | | ???????????# #????????????# #??????????????????? | | ???????????# #????????????# #??????????????????? | | ????# #### ######+####### #??????????????????? | | ????# #??????????????????? | | ????# #?????????????????## | | ????# #?????????????????#[ | | ????##########+############ #???????????????### | | ??????????????????????????# #????????? "#???#*"% | | ??????????????????????????# #### " "#???###! | | ??????????????????????????# + """ ????????#! | | ??????????????????????????# #### " #??????## | | ??????????????????????????# #????????? #???????? | | ??????????????????????????# #??????????????????# | | ??????????????????????????# #??????????????????# | +----------------------------------------------------+ Best States ------------- Heat Dissipation 42 Coolant Potential 50 Energy Generation 12 Energy Capacity 265 Matter Stores 300 Matter Capacity 300 Sight Range 16 Terrain Scan Density 10 Armor Coverage 450 Evasion (%) 62 Targeting Accuracy 12 Relay Coupler Types 1 Relay Coupler Value 18 Item Schematics ----------------- None Robot Schematics ------------------ None Fabricated ------------ Nothing Alien Tech Used ----------------- None Achievements -------------- None Challenges ------------ None Game ------ Seed TargetMasterShearcannon Manual? 0 Play Time 00:16:24 Cumulative 467.4 hours Start 2023.07.17 @ 12:13:02 End 2023.07.17 @ 12:25:05 Sessions 1 Manual Loads 0 Difficulty Rogue Special Mode None Game No. 365 Rogue 146 Adventurer 76 Explorer 143 Win Type - Total 22 Types 19/0/2/0/0/0/0/1/0 Lore% 67 Gallery% 87 Achievement% 71 Wizard Run 0 Options --------- ASCII 0 Keyboard 1 Movement Numpad Keybinds 0 Fullscreen 2 Font 18/X11Bold Map View 76x50 Tactical HUD 1 Map Filters NONE Filters NONE Steam 1 RUN: 94b07e97-1159-4bd5-9270-f2f6878d401f